bitfinex-derivatives/quotes_BTCF0:USTF0_20251225
["timestamp","ask_amount","ask_price","bid_price","bid_amount"]
[1766676613830,0.0001701,88179.0,88147.0,0.00964]
[1766676614630,0.0113475,88178.0,88143.0,0.00011679]
[1766676614831,0.0113497,88161.0,88143.0,0.00011679]
[1766676615028,0.0113492,88165.0,88143.0,0.00011679]
[1766676615539,0.0113494,88163.0,88143.0,0.00011679]
[1766676615730,0.0001701,88162.0,88144.0,0.0001701]
[1766676615925,0.0001701,88162.0,88143.0,0.00011679]
[1766676616832,0.0113497,88161.0,88144.0,0.00011386]
[1766676617234,0.0113504,88156.0,88144.0,0.00011386]
[1766676617425,0.0001701,88162.0,88144.0,0.00011386]
[1766676617938,0.0113497,88161.0,88144.0,0.00011386]
[1766676618128,0.0001701,88162.0,88144.0,0.00011386]
[1766676620041,0.0001701,88162.0,88144.0,0.01146566]
[1766676620539,1.44768,88189.0,88156.0,0.0113502]
[1766676620734,0.05728,88188.0,88156.0,0.0113502]
[1766676620934,0.0113466,88185.0,88150.0,0.011351]
[1766676621233,0.0113478,88176.0,88143.0,0.00011679]
[1766676621539,0.0001701,88168.0,88154.0,0.0113504]
[1766676621727,0.0001701,88168.0,88151.0,0.0001701]
[1766676621926,0.0115189,88168.0,88151.0,0.0001701]
[1766676622128,0.011349,88167.0,88151.0,0.0001701]
[1766676622330,0.0001701,88168.0,88151.0,0.0001701]
[1766676623827,0.01135,88159.0,88143.0,0.00011679]
[1766676624238,0.0113495,88163.0,88143.0,0.00011679]
[1766676624440,0.0001701,88168.0,88147.0,0.0113514]
[1766676624633,0.0115189,88168.0,88147.0,0.0113514]
[1766676624832,0.0115189,88168.0,88149.0,0.00011386]
[1766676625842,0.0113491,88166.0,88149.0,0.00011386]
[1766676626030,0.0113494,88164.0,88149.0,0.00011386]
[1766676626433,0.0113496,88161.0,88149.0,0.00011386]
[1766676626633,0.0113491,88166.0,88149.0,0.00011386]
[1766676626936,0.0113493,88164.0,88149.0,0.00011386]
[1766676627126,0.0001701,88168.0,88149.0,0.00011386]
[1766676627331,0.011349,88167.0,88149.0,0.00011386]
[1766676628046,0.0001701,88168.0,88149.0,0.00011386]
[1766676628427,0.0001701,88168.0,88150.0,0.011351]
[1766676628633,0.0001701,88168.0,88149.0,0.00011386]
[1766676628935,1e-07,88168.0,88157.0,0.01135]
[1766676629836,1e-07,88168.0,88153.0,0.0113506]
[1766676630039,1e-07,88168.0,88150.0,0.0113509]
[1766676630939,0.0113489,88168.0,88149.0,0.00011386]
[1766676631648,0.0113489,88168.0,88147.0,0.01066423]
[1766676631944,0.0113493,88164.0,88143.0,0.00011679]
[1766676632644,1e-07,88168.0,88143.0,0.00011679]
[1766676632645,0.0113497,88161.0,88145.0,0.00017]
[1766676633035,1e-07,88168.0,88145.0,0.00017]
[1766676633036,0.0113501,88158.0,88145.0,0.00017]
[1766676633239,0.0113501,88158.0,88143.0,0.00011679]
[1766676633448,1e-07,88168.0,88143.0,0.00011679]
[1766676633748,0.011351,88151.0,88143.0,9e-08]
[1766676634047,0.0113506,88154.0,88143.0,9e-08]
[1766676634342,0.0113509,88152.0,88143.0,9e-08]
[1766676634550,0.0113504,88155.0,88143.0,9e-08]
[1766676634730,0.0001167,88154.0,88143.0,9e-08]
[1766676634931,0.011351,88151.0,88143.0,9e-08]
[1766676635342,0.0114673,88154.0,88143.0,9e-08]
[1766676635646,0.0001167,88154.0,88143.0,9e-08]
[1766676635846,0.0113507,88153.0,88143.0,9e-08]
[1766676636549,0.0001167,88154.0,88143.0,9e-08]
[1766676637147,0.0113507,88153.0,88143.0,9e-08]
[1766676637343,0.0001167,88154.0,88143.0,9e-08]
[1766676637542,0.01936,88163.0,88143.0,9e-08]
[1766676637543,0.02172,88161.0,88143.0,9e-08]
[1766676637737,0.02172,88161.0,88144.0,0.0113518]
[1766676638751,0.02172,88161.0,88143.0,9e-08]
[1766676639254,0.0113502,88157.0,88143.0,9e-08]
[1766676639643,0.0113509,88152.0,88134.0,0.04832]
[1766676639844,0.0113504,88155.0,88134.0,0.04832]
[1766676640645,0.02172,88161.0,88134.0,0.04832]
[1766676640953,0.0113509,88152.0,88134.0,0.04832]
[1766676641151,0.02172,88161.0,88134.0,0.04832]
[1766676641347,0.0113509,88152.0,88134.0,0.04832]
[1766676642548,0.0113498,88160.0,88134.0,0.04832]
[1766676642753,0.0113511,88150.0,88134.0,0.04832]
[1766676643959,0.0113502,88157.0,88125.0,0.04023867]
[1766676644147,0.0113502,88157.0,88133.0,0.05728]
[1766676644148,0.0113519,88144.0,88133.0,0.05728]
[1766676644349,0.0113522,88142.0,88133.0,0.03408]
[1766676644657,0.0001701,88150.0,88133.0,0.03408]
[1766676644863,0.0001701,88150.0,88131.0,0.03372]
[1766676645159,0.0113538,88129.0,88110.0,0.04023867]
[1766676645361,0.0113541,88127.0,88109.0,0.02676]
[1766676645549,0.0001702,88128.0,88109.0,0.02676]
[1766676646150,0.0001702,88128.0,88114.0,0.0113556]
[1766676646347,1.44784,88152.0,88123.0,0.0113544]
[1766676646549,0.05728,88151.0,88120.0,0.0113549]
[1766676647261,0.0113523,88140.0,88120.0,0.0113549]
[1766676647762,0.0113523,88140.0,88117.0,0.0113553]
[1766676647964,0.0113527,88138.0,88117.0,0.0113553]
[1766676648864,0.0001702,88144.0,88112.0,0.0001702]
[1766676649069,0.011354,88128.0,88112.0,0.0001702]
[1766676649254,0.0113542,88126.0,88112.0,0.0001702]
[1766676649960,0.0113545,88124.0,88112.0,0.0001702]
[1766676650868,0.0113547,88122.0,88112.0,0.0001702]
[1766676651270,0.0001702,88126.0,88112.0,0.0001702]
[1766676651657,0.0001702,88126.0,88095.0,0.04023867]
[1766676651658,0.0001702,88126.0,88091.0,0.04023867]
[1766676651855,0.0113552,88119.0,88097.0,0.0113578]
[1766676652059,0.0001702,88126.0,88105.0,0.0113567]
[1766676652361,0.0001702,88126.0,88106.0,0.0113566]
[1766676652667,1.44804,88159.0,88122.0,0.0113546]
[1766676652871,0.05728,88158.0,88122.0,0.0096]
[1766676653079,0.0113522,88141.0,88123.0,0.0113545]
[1766676653377,0.0113511,88150.0,88118.0,0.05728]
[1766676653575,0.0001702,88143.0,88125.0,0.0001702]
[1766676653780,0.0113529,88136.0,88125.0,0.0001702]
[1766676653983,0.0097702,88143.0,88125.0,0.0001702]
[1766676654977,0.0113543,88125.0,88095.0,0.04023867]
[1766676655182,0.0113543,88125.0,88104.0,0.0113569]
[1766676655682,0.0113543,88125.0,88106.0,0.0113567]
[1766676655979,0.0113546,88123.0,88096.0,1.44824]
[1766676656371,0.0001702,88124.0,88099.0,0.0113576]
[1766676656574,0.0001702,88124.0,88097.0,0.05728]
[1766676656773,0.0113546,88123.0,88097.0,0.05728]
[1766676657181,0.0113549,88121.0,88097.0,0.05728]
[1766676657379,0.0001702,88124.0,88116.0,0.0113553]
[1766676657573,0.0113504,88156.0,88116.0,0.0113553]
[1766676657574,0.0113533,88133.0,88116.0,0.0113553]
[1766676657780,0.0113542,88126.0,88112.0,0.05728]
[1766676658079,0.01116578,88123.0,88110.0,0.05672]
[1766676658480,0.0113549,88121.0,88110.0,0.05672]
[1766676658979,0.0001702,88125.0,88110.0,0.05672]
[1766676659284,0.0113544,88124.0,88110.0,0.05672]
[1766676660479,0.0113529,88136.0,88117.0,0.0113552]
[1766676660680,0.009,88153.0,88123.0,0.0113545]
[1766676660880,0.0113525,88139.0,88124.0,0.04892]
[1766676661881,2e-07,88140.0,88125.0,0.0113542]
[1766676662182,0.0113525,88139.0,88124.0,0.04892]
[1766676662487,0.0113525,88139.0,88124.0,0.05728]
[1766676662681,0.00226931,88133.0,88124.0,0.05728]
[1766676662884,0.00226931,88133.0,88123.0,0.0001702]
[1766676663185,0.00226931,88133.0,88121.0,0.05728]
[1766676664082,0.00226931,88133.0,88111.0,1.44816]
[1766676664386,0.00226931,88133.0,88085.0,0.08038823]
[1766676664387,0.0113541,88127.0,88116.0,2e-07]
[1766676666285,0.00226931,88133.0,88116.0,2e-07]
[1766676666892,0.0113539,88128.0,88116.0,2e-07]
[1766676667386,0.01284,88132.0,88116.0,2e-07]
[1766676668078,0.0241935,88132.0,88116.0,2e-07]
[1766676668283,0.01284,88132.0,88103.0,0.03022167]
[1766676668591,0.01284,88132.0,88102.0,0.00504]
[1766676668777,0.0113538,88129.0,88102.0,0.00504]
[1766676668980,0.0224,88132.0,88111.0,0.011356]
[1766676669187,0.0224,88132.0,88108.0,0.0113564]
[1766676669388,0.0224,88132.0,88111.0,0.0001702]
[1766676670385,0.0113539,88128.0,88111.0,0.0001702]
[1766676670787,0.0113542,88126.0,88111.0,0.0001702]
[1766676671586,0.0113551,88119.0,88111.0,0.0001702]
[1766676672582,0.00396938,88119.0,88111.0,0.0001702]
[1766676672786,0.0113535,88131.0,88111.0,0.0001702]
[1766676672987,0.0113547,88122.0,88111.0,0.0001702]
[1766676673694,0.0113536,88131.0,88111.0,0.0001702]
[1766676674088,0.0224,88132.0,88104.0,1.67e-06]
[1766676674288,0.06322715,88132.0,88091.0,0.04023867]
[1766676674496,0.0113561,88111.0,88090.0,0.04023867]
[1766676674793,0.0113556,88115.0,88093.0,0.04023867]
[1766676675096,0.0001702,88113.0,88095.0,0.0113581]
[1766676675292,0.0001702,88113.0,88100.0,0.0113574]
[1766676675688,0.0001702,88113.0,88093.0,0.04023867]
[1766676675689,0.0001702,88113.0,88098.0,0.0113576]
[1766676676085,0.0001702,88113.0,88095.0,0.0113581]
[1766676676895,0.0001702,88113.0,88092.0,0.04023867]
[1766676677202,0.0113566,88108.0,88090.0,0.10887737]
[1766676677693,0.0001702,88113.0,88097.0,0.0113578]
[1766676677899,0.0001702,88113.0,88098.0,0.0113577]
[1766676678198,0.0001702,88113.0,88091.0,0.04023867]
[1766676678199,0.0001702,88113.0,88101.0,0.0113573]
[1766676678693,0.0001702,88113.0,88092.0,0.04023867]
[1766676678885,0.0001702,88113.0,88098.0,0.0113577]
[1766676679083,0.0001702,88113.0,88091.0,0.04023867]
[1766676679289,2e-07,88113.0,88091.0,0.04023867]
[1766676679889,2e-07,88113.0,88097.0,0.0113578]
[1766676680500,2e-07,88113.0,88099.0,0.0113575]
[1766676681001,2e-07,88113.0,88104.0,0.0113569]
[1766676681787,2e-07,88113.0,88099.0,0.0113575]
[1766676681992,2e-07,88113.0,88101.0,0.0113572]
[1766676684602,2e-07,88113.0,88098.0,0.0113577]
[1766676685792,2e-07,88113.0,88096.0,0.00017012]
[1766676685996,2e-07,88113.0,88097.0,0.0686378]
[1766676686716,2e-07,88113.0,88096.0,0.00017012]
[1766676686717,0.0113563,88109.0,88096.0,0.00017012]
[1766676687204,0.0113565,88108.0,88096.0,0.00017012]
[1766676687404,0.0162,88112.0,88085.0,0.09751867]
[1766676687587,0.0113563,88110.0,88085.0,0.05728]
[1766676687792,0.0162,88112.0,88085.0,0.05728]
[1766676688402,8.904e-05,88111.0,88085.0,0.05728]
[1766676688599,0.0113572,88103.0,88085.0,0.05728]
[1766676690093,8.904e-05,88111.0,88085.0,0.05728]
[1766676690489,0.0113574,88101.0,88074.0,0.0113608]
[1766676690690,9.595e-05,88100.0,88086.0,0.0113593]
[1766676691302,2e-07,88113.0,88087.0,0.03108]
[1766676691498,0.011355,88120.0,88094.0,0.0113582]
[1766676691895,0.0113553,88117.0,88090.0,0.0113587]
[1766676692102,0.0113559,88112.0,88085.0,0.04023867]
[1766676692400,0.0113564,88109.0,88087.0,0.03592]
[1766676692598,0.0001702,88107.0,88090.0,0.0001702]
[1766676694905,0.0001702,88107.0,88090.0,0.0115289]
[1766676695409,0.0001702,88107.0,88090.0,0.0001702]
[1766676695609,4.997e-05,88111.0,88094.0,0.0113583]
[1766676695793,0.04082715,88126.0,88095.0,0.0113581]
[1766676695999,0.0113555,88116.0,88095.0,0.0113581]
[1766676696194,0.0113549,88120.0,88095.0,0.0113581]
[1766676696406,0.0112,88123.0,88095.0,0.0113581]
[1766676696912,0.0001702,88118.0,88095.0,0.0113581]
[1766676697113,0.0113558,88113.0,88092.0,0.0113585]
[1766676697312,0.0001702,88118.0,88092.0,0.05728]
[1766676698301,0.0001702,88118.0,88093.0,0.0113583]
[1766676698302,0.0113554,88117.0,88093.0,0.0113583]
[1766676699010,0.0113557,88114.0,88093.0,0.0113583]
[1766676699215,0.0115254,88118.0,88095.0,0.0113581]
[1766676699713,0.0113559,88113.0,88092.0,0.05728]
[1766676700106,0.0113567,88107.0,88090.0,0.0001702]
[1766676700512,0.0113562,88110.0,88090.0,0.0001702]
[1766676700910,0.0113558,88113.0,88091.0,0.0113586]
[1766676701300,0.0113558,88113.0,88090.0,0.0001702]
[1766676701301,0.0001702,88118.0,88090.0,0.0001702]
[1766676702913,0.0115255,88118.0,88090.0,0.0001702]
[1766676703798,0.0113558,88114.0,88090.0,0.0001702]
[1766676703998,0.0113563,88109.0,88090.0,0.0001702]
[1766676704409,0.0113567,88107.0,88090.0,0.0001702]
[1766676704610,0.011357,88105.0,88090.0,0.0001702]
[1766676704816,0.0113558,88114.0,88095.0,0.011358]
[1766676705704,0.0113562,88111.0,88091.0,0.0113586]
[1766676706104,0.0113562,88111.0,88093.0,0.0113583]
[1766676706617,0.0001702,88118.0,88092.0,0.0113584]
[1766676707221,0.0113564,88109.0,88092.0,0.0113584]
[1766676707410,0.0113568,88106.0,88090.0,0.0001702]
[1766676709311,0.0001702,88118.0,88090.0,0.0001702]
[1766676709518,0.0113571,88104.0,88090.0,0.0001702]
[1766676709915,0.0113566,88107.0,88090.0,0.0001702]
[1766676710518,0.0113556,88115.0,88090.0,0.0001702]
[1766676711105,0.0194102,88118.0,88091.0,0.0113586]
[1766676711310,0.0194102,88118.0,88094.0,0.0113582]
[1766676711817,0.0001702,88118.0,88096.0,0.0113579]
[1766676712018,0.0113555,88116.0,88097.0,0.0113578]
[1766676713320,0.0001702,88118.0,88090.0,0.0001702]
[1766676714215,0.0001702,88118.0,88093.0,0.0113583]
[1766676715020,0.0113569,88105.0,88090.0,0.0001702]
[1766676715320,0.0001702,88118.0,88090.0,0.0001702]
[1766676716021,0.0113563,88110.0,88090.0,0.0001702]
[1766676716226,0.0113594,88086.0,88075.0,0.04049996]
[1766676716519,0.0113564,88109.0,88062.0,0.00022689]
[1766676716740,0.011358,88097.0,88077.0,0.0113603]
[1766676717115,0.0113582,88095.0,88074.0,0.0113608]
[1766676717310,0.0113587,88091.0,88076.0,0.0001703]
[1766676717511,0.0001703,88093.0,88076.0,0.0001703]
[1766676718209,0.0113595,88085.0,88076.0,0.0001703]
[1766676718615,0.0001703,88093.0,88076.0,0.0001703]
[1766676719019,0.0113599,88082.0,88076.0,0.0001703]
[1766676719217,0.0113599,88082.0,88062.0,0.00022689]
[1766676719523,0.0113602,88080.0,88062.0,0.00022689]
[1766676720124,0.0113605,88077.0,88062.0,0.00022689]
[1766676721225,0.0113613,88071.0,88062.0,9e-08]
[1766676721526,0.0113614,88070.0,88062.0,9e-08]
[1766676721824,0.0001703,88075.0,88062.0,9e-08]
[1766676723116,0.0001703,88075.0,88036.0,0.0113657]
[1766676723315,0.0113628,88059.0,88039.0,0.0113653]
[1766676723516,0.01124,88073.0,88049.0,0.0113641]
[1766676723715,0.01124,88073.0,88036.0,0.05728]
[1766676723716,0.01124,88073.0,88046.0,0.0113644]
[1766676724017,0.0113613,88071.0,88049.0,0.011364]
[1766676724237,0.0113616,88068.0,88047.0,0.0113642]
[1766676724422,0.0113613,88071.0,88049.0,0.011364]
[1766676724623,0.0113616,88069.0,88049.0,0.011364]
[1766676725120,0.0113611,88072.0,88052.0,0.0113637]
[1766676725321,0.0113613,88071.0,88052.0,0.0113636]
[1766676725515,0.0113613,88071.0,88036.0,0.05728]
[1766676725516,0.0001703,88075.0,88036.0,0.05728]
[1766676725720,0.0001703,88075.0,88033.0,1.4488]
[1766676725721,0.0001703,88075.0,88059.0,0.0113627]
[1766676725928,0.0001703,88075.0,88061.0,0.0113624]
[1766676727020,0.04087338,88106.0,88062.0,0.05732]
[1766676727221,0.0113574,88101.0,88078.0,0.0113602]
[1766676727420,0.0113574,88101.0,88078.0,0.0686802]
[1766676727621,0.0113578,88098.0,88078.0,0.0686802]
[1766676728017,0.0001703,88097.0,88079.0,0.0001703]
[1766676728524,0.0113587,88091.0,88079.0,0.0001703]
[1766676728721,0.0113587,88091.0,88069.0,0.05732]
[1766676729136,0.0001703,88097.0,88074.0,0.0113608]
[1766676729635,0.0113554,88117.0,88093.0,0.0113583]
[1766676729934,0.0113554,88117.0,88096.0,0.011358]
[1766676730131,0.00208,88122.0,88078.0,0.0113602]
[1766676730132,0.0113557,88114.0,88091.0,0.0096]
[1766676730328,1.54206843,88133.0,88084.0,1.449]
[1766676730329,0.00226931,88133.0,88092.0,0.05732]
[1766676730529,0.0001703,88121.0,88105.0,0.0113567]
[1766676731126,0.0113535,88132.0,88110.0,0.0113562]
[1766676731333,0.0113539,88128.0,88106.0,0.0227567]
[1766676731833,0.0113536,88131.0,88107.0,0.0113566]
[1766676732032,0.011354,88128.0,88107.0,0.0113566]
[1766676732235,0.0115243,88128.0,88107.0,0.0113566]
[1766676732436,0.0113547,88122.0,88106.0,0.0114]
[1766676732941,0.0113542,88126.0,88106.0,0.0114]
[1766676733239,0.0115243,88128.0,88106.0,0.0114]
[1766676733743,0.0001703,88128.0,88106.0,0.0114]
[1766676734232,0.0001703,88128.0,88104.0,0.0001703]
[1766676734534,0.0001703,88128.0,88091.0,1.44884]
[1766676734535,0.011356,88112.0,88091.0,1.44884]
[1766676734719,0.0113555,88116.0,88089.0,0.00016]
[1766676734923,0.0113549,88120.0,88089.0,0.00016]
[1766676735133,0.0113549,88120.0,88092.0,0.0113585]
[1766676735433,0.0113558,88114.0,88097.0,0.0001703]
[1766676737136,0.0113561,88111.0,88097.0,0.0001703]
[1766676737436,0.0001703,88115.0,88097.0,0.0001703]
[1766676737739,0.0115259,88115.0,88097.0,0.0001703]
[1766676738235,0.011356,88112.0,88097.0,0.0001703]
[1766676739229,0.0001703,88115.0,88089.0,0.00016]
[1766676739425,0.0001703,88115.0,88082.0,0.0113598]
[1766676739630,0.0001703,88115.0,88083.0,0.0096]
[1766676739828,0.0113564,88109.0,88083.0,0.0096]
[1766676740432,0.0113568,88106.0,88083.0,0.0096]
[1766676740639,0.0113563,88110.0,88084.0,0.0113595]
[1766676740837,0.0113563,88110.0,88088.0,0.011359]
[1766676741138,0.0001703,88115.0,88088.0,0.011359]
[1766676741139,0.0113557,88114.0,88088.0,0.011359]
[1766676741329,0.0113557,88114.0,88091.0,0.0113586]
[1766676741529,0.0001703,88115.0,88083.0,0.0096]
[1766676741934,0.0001703,88115.0,88093.0,0.0113583]
[1766676742238,0.0001703,88115.0,88083.0,0.0096]
[1766676742642,0.0001703,88115.0,88098.0,0.0113577]
[1766676742836,0.0001703,88115.0,88095.0,0.00812]
[1766676743032,0.0113558,88114.0,88096.0,0.011358]
[1766676743235,0.0001703,88115.0,88098.0,0.0113577]
[1766676743429,0.00226931,88133.0,88107.0,0.0113565]
[1766676743640,0.0113539,88128.0,88107.0,0.0282765]
[1766676744439,0.0001703,88126.0,88109.0,0.0001703]
[1766676744627,0.0115246,88126.0,88109.0,0.0001703]
[1766676745335,0.0001703,88126.0,88109.0,0.0001703]
[1766676746147,0.0001703,88126.0,88110.0,0.0113561]
[1766676747442,0.0001703,88126.0,88112.0,0.0113559]
[1766676747842,0.0001703,88126.0,88109.0,0.0001703]
[1766676748159,0.0001703,88126.0,88109.0,0.0115266]
[1766676749545,0.0001703,88126.0,88112.0,0.0113559]
[1766676749929,0.0001703,88126.0,88109.0,0.0001703]
[1766676749930,0.0115244,88126.0,88109.0,0.0001703]
[1766676751443,0.0001703,88126.0,88109.0,0.0001703]
[1766676751646,0.0001703,88126.0,88109.0,0.0115266]
[1766676752034,0.00226931,88133.0,88109.0,0.0001703]
[1766676752249,0.00226931,88133.0,88116.0,0.0113553]
[1766676753038,0.00243961,88133.0,88116.0,0.0113553]
[1766676753549,0.0113535,88132.0,88112.0,0.0113559]
[1766676754536,0.0113536,88131.0,88111.0,0.0113559]
[1766676754940,0.00243961,88133.0,88109.0,0.0001703]
[1766676755142,0.00243961,88133.0,88120.0,0.0113548]
[1766676755346,0.04110027,88150.0,88122.0,0.0113546]
[1766676755548,0.00022689,88150.0,88122.0,0.0113546]
[1766676755745,0.0113522,88142.0,88122.0,0.0113546]
[1766676756348,0.00017019,88141.0,88123.0,0.00017019]
[1766676757042,0.00022689,88150.0,88133.0,0.0113531]
[1766676757545,0.00022689,88150.0,88132.0,0.01124]
[1766676758151,0.00039708,88150.0,88132.0,0.01124]
[1766676758352,0.0113512,88149.0,88132.0,0.01124]
[1766676758851,0.0113521,88143.0,88132.0,0.01124]
[1766676759549,0.0113516,88146.0,88133.0,0.00335]
[1766676759949,0.00039708,88150.0,88133.0,0.00335]
[1766676762854,0.0113495,88162.0,88133.0,0.00335]
[1766676763154,0.0113485,88170.0,88148.0,0.0113513]
[1766676763754,0.00017019,88168.0,88150.0,0.00017019]
[1766676764260,0.0113492,88165.0,88150.0,0.00017019]
[1766676764954,0.01151899,88168.0,88150.0,0.00017019]
[1766676765157,0.0113491,88166.0,88150.0,0.00017019]
[1766676767050,0.00017019,88168.0,88159.0,0.0113499]
[1766676767349,1.44828,88187.0,88158.0,0.01676]
[1766676767550,0.01136,88188.0,88158.0,0.01676]
[1766676767856,0.0113487,88169.0,88158.0,0.01676]
[1766676768062,0.0113487,88169.0,88159.0,0.02468]
[1766676768257,0.0113488,88168.0,88150.0,0.00017019]
[1766676768454,0.0113491,88166.0,88151.0,0.00812]
[1766676768849,0.00011326,88168.0,88151.0,0.00812]
[1766676769054,0.0113493,88164.0,88152.0,0.05728]
[1766676769564,0.0113496,88162.0,88152.0,0.05728]
[1766676769861,0.0113496,88162.0,88151.0,0.05728]
[1766676770558,0.0113499,88160.0,88151.0,0.05728]
[1766676771857,0.00011326,88168.0,88136.0,0.0113527]
[1766676772058,0.01135,88159.0,88138.0,0.0113525]
[1766676772560,0.01135,88159.0,88140.0,0.0113523]
[1766676772955,0.0113492,88165.0,88145.0,0.0113516]
[1766676773262,0.00011326,88168.0,88137.0,0.05728]
[1766676773263,0.0113497,88161.0,88141.0,0.01152239]
[1766676773451,0.01135,88159.0,88141.0,0.00017019]
[1766676773652,0.00011326,88168.0,88141.0,0.00017019]
[1766676773963,0.0113509,88152.0,88141.0,0.00017019]
[1766676774162,0.0113509,88152.0,88140.0,0.00016]
[1766676774459,0.0113511,88150.0,88140.0,0.00016]
[1766676774660,0.0113508,88152.0,88140.0,0.00016]
[1766676775552,0.0113495,88162.0,88140.0,0.00016]
[1766676777060,0.0113493,88164.0,88140.0,0.00016]
[1766676777564,0.0113506,88154.0,88140.0,0.00016]
[1766676778165,0.0113506,88154.0,88141.0,0.00335]
[1766676778760,0.00011326,88168.0,88130.0,0.05724]
[1766676778761,0.0113514,88148.0,88130.0,0.05724]
[1766676778950,0.011349,88167.0,88134.0,0.011353]
[1766676778951,0.0113503,88156.0,88134.0,0.011353]
[1766676779151,0.0113503,88156.0,88131.0,0.05724]
[1766676779152,0.0113503,88156.0,88136.0,0.0113528]
[1766676779562,0.00017019,88155.0,88138.0,0.0113525]
[1766676779960,0.00017019,88155.0,88140.0,0.0113523]
[1766676780359,0.00812,88170.0,88142.0,0.011352]
[1766676781469,0.00017019,88165.0,88142.0,0.011352]
[1766676782170,0.0113494,88164.0,88142.0,0.011352]
[1766676782371,0.0113496,88162.0,88142.0,0.011352]
[1766676782673,0.0113498,88160.0,88139.0,0.0113524]
[1766676783063,0.00017019,88165.0,88137.0,0.00017019]
[1766676783260,0.0113509,88152.0,88138.0,0.05724]
[1766676783666,0.0113511,88150.0,88138.0,0.05724]
[1766676784063,0.0113511,88150.0,88137.0,0.00017019]
[1766676784275,0.0113512,88149.0,88137.0,0.00829019]
[1766676784871,0.0113507,88153.0,88137.0,0.00829019]
[1766676785270,0.00017019,88165.0,88137.0,0.00829019]
[1766676785471,0.0113502,88157.0,88137.0,0.00829019]
[1766676786065,0.0113502,88157.0,88138.0,0.0113525]
[1766676786870,0.0113505,88155.0,88137.0,0.00829019]
[1766676787572,0.0113506,88154.0,88137.0,0.00829019]
[1766676792080,0.0113509,88152.0,88137.0,0.00829019]
[1766676793881,0.0113504,88155.0,88137.0,0.00829019]
[1766676794179,0.0113504,88155.0,88137.0,0.01964289]
[1766676794374,0.0113504,88155.0,88137.0,0.00829019]
[1766676794580,0.0113504,88156.0,88137.0,0.00829019]
[1766676795082,0.0113506,88154.0,88137.0,0.00829019]
[1766676797284,0.011351,88151.0,88137.0,0.00829019]
[1766676797886,0.0113505,88155.0,88137.0,0.00829019]
[1766676798486,0.0113501,88158.0,88138.0,0.0113526]
[1766676798673,0.0113503,88156.0,88137.0,0.00829019]
[1766676798873,0.0113506,88154.0,88137.0,0.00829019]
[1766676799074,0.04064761,88164.0,88137.0,0.00829019]
[1766676799368,0.0113509,88152.0,88137.0,0.00829019]
[1766676800375,0.08491732,88150.0,88137.0,9e-08]
[1766676800685,0.0113514,88148.0,88137.0,9e-08]
[1766676801584,0.0113518,88145.0,88136.0,0.05724]
[1766676806187,0.0113506,88154.0,88136.0,0.05724]
[1766676806386,0.08491732,88160.0,88136.0,0.05724]
[1766676806574,0.0113522,88142.0,88134.0,0.00017019]
[1766676806777,0.0113522,88142.0,88135.0,0.05724]
[1766676808388,0.0113523,88141.0,88136.0,0.05724]
[1766676808789,0.0113518,88145.0,88136.0,0.05724]
[1766676811981,0.011352,88143.0,88136.0,0.05724]
[1766676812181,0.00017019,88147.0,88136.0,0.05724]
[1766676812382,0.0113519,88144.0,88136.0,0.05724]
[1766676813988,0.01152169,88147.0,88136.0,0.05724]
[1766676815892,0.00017019,88147.0,88136.0,0.05724]
[1766676816494,0.00017019,88147.0,88135.0,0.05724]
[1766676817996,0.0113516,88146.0,88135.0,0.05724]
[1766676818183,0.00017019,88147.0,88135.0,0.05724]
[1766676826997,0.0113538,88129.0,88114.0,0.04026129]
[1766676827188,0.08491732,88124.0,88092.0,1.44808]
[1766676827395,0.08491732,88120.0,88104.0,0.0113569]
[1766676827589,0.0113518,88144.0,88079.0,0.0113602]
[1766676827590,0.08491732,88114.0,88079.0,0.0113602]
[1766676827798,0.08491732,88130.0,88107.0,0.0113565]
[1766676828102,0.00017019,88127.0,88110.0,0.00017019]
[1766676828289,0.00010473,88126.0,88110.0,0.00017019]
[1766676828598,0.0113543,88125.0,88111.0,0.04376]
[1766676829194,0.0113553,88118.0,88112.0,0.05724]
[1766676829504,0.08491732,88121.0,88074.0,0.0603352]
[1766676829699,0.0113561,88111.0,88085.0,0.0113593]
[1766676829903,8.378e-05,88110.0,88087.0,0.0113591]
[1766676830495,0.00017019,88107.0,88090.0,0.00017019]
[1766676831098,0.01152679,88107.0,88091.0,0.04028]
[1766676831699,0.00017019,88107.0,88091.0,0.04028]
[1766676831896,0.00017019,88107.0,88090.0,0.00017019]
[1766676832308,0.00017019,88107.0,88091.0,0.01516]
[1766676833203,0.01152679,88107.0,88091.0,0.01516]
[1766676833506,0.011357,88105.0,88092.0,0.05724]
[1766676833906,0.00017019,88107.0,88092.0,0.05724]
[1766676834099,0.07381158,88119.0,88097.0,0.0113579]
[1766676834411,0.0113549,88121.0,88100.0,0.08491732]
[1766676834609,0.0113549,88121.0,88097.0,0.0113579]
[1766676835106,0.00017019,88118.0,88097.0,0.0113579]
[1766676835312,0.0113559,88113.0,88092.0,0.05724]
[1766676835610,0.00017019,88118.0,88093.0,0.05724]
[1766676835808,0.0113557,88114.0,88093.0,0.0685983]
[1766676836710,0.0113557,88114.0,88093.0,0.0113583]
[1766676836912,0.0113557,88114.0,88094.0,0.05724]
[1766676839009,0.0113553,88117.0,88095.0,0.0113581]
[1766676839709,0.0113557,88115.0,88094.0,0.05724]
[1766676840211,0.0113557,88115.0,88094.0,0.0685982]
[1766676842215,0.01152539,88118.0,88096.0,0.0113579]
[1766676842418,0.0113555,88116.0,88096.0,0.0113579]
[1766676843614,0.00017019,88118.0,88094.0,0.05724]
[1766676843816,0.0113558,88114.0,88094.0,0.05724]
[1766676844017,0.0113558,88114.0,88095.0,0.0113581]
[1766676844230,0.0113558,88114.0,88094.0,0.05724]
[1766676844823,0.0113558,88114.0,88096.0,0.011358]
[1766676845026,0.0113558,88114.0,88094.0,0.05724]
[1766676845222,0.0113558,88114.0,88093.0,0.0113583]
[1766676845223,0.00017019,88118.0,88095.0,0.05724]
[1766676845428,0.0113559,88113.0,88095.0,0.05724]
[1766676847636,0.00017019,88118.0,88095.0,0.05724]
[1766676847830,0.00017019,88118.0,88090.0,0.00017019]
[1766676848429,0.00017019,88118.0,88091.0,0.00016]
[1766676848934,0.00017019,88118.0,88090.0,0.00017019]
[1766676849127,0.00017019,88118.0,88091.0,0.05724]
[1766676849527,0.0113564,88109.0,88092.0,0.05724]
[1766676850633,0.0113567,88107.0,88092.0,0.05724]
[1766676851230,0.0113571,88104.0,88093.0,0.05724]
[1766676853623,0.0113571,88104.0,88090.0,0.00017019]
[1766676853823,0.0113571,88104.0,88094.0,0.05724]
[1766676854336,0.0113573,88102.0,88094.0,0.05724]
[1766676854730,0.0113573,88102.0,88090.0,0.00017019]
[1766676854731,0.06300194,88114.0,88090.0,0.00017019]